bitfinex-derivatives/quotes_ETHF0:USTF0_20250708
["timestamp","ask_amount","ask_price","bid_price","bid_amount"]
[1751975687878,28.16325047,2575.6,2575.5,5.96208694]
[1751975688478,2.31961712,2575.8,2575.7,0.77647]
[1751975688678,2.31961712,2575.8,2575.7,7.76772694]
[1751975688876,28.69161712,2576.0,2575.9,0.77641]
[1751975689072,26.372,2576.0,2575.9,1.41421]
[1751975689282,3.01391712,2576.2,2576.1,0.77635]
[1751975689476,26.387,2576.2,2576.1,2.43665]
[1751975690088,27.0735,2576.2,2576.1,2.43665]
[1751975690683,27.84982,2576.2,2576.1,1.6603]
[1751975690878,28.55052,2576.2,2576.1,1.41415]
[1751975691274,2.16352,2576.2,2576.1,1.41415]
[1751975691478,28.55252,2576.2,2576.1,1.41415]
[1751975691680,27.7762,2576.2,2576.1,1.41415]
[1751975691877,28.55252,2576.2,2576.1,1.41415]
[1751975692074,27.86602,2576.2,2576.1,0.77635]
[1751975692277,27.0897,2576.2,2576.1,2.45885]
[1751975692584,8.171,2576.3,2576.2,0.77632]
[1751975692886,10.48961712,2576.5,2576.4,0.77626]
[1751975693084,36.87461712,2576.5,2576.4,0.77626]
[1751975693381,34.555,2576.5,2576.4,0.77626]
[1751975694679,36.01523,2576.5,2576.4,0.77626]
[1751975694885,36.69154,2576.5,2576.4,0.77626]
[1751975695082,29.20554,2576.5,2576.4,0.77626]
[1751975695787,28.52154,2576.5,2576.4,0.77626]
[1751975695985,28.52154,2576.5,2576.4,1.43626]
[1751975696285,29.20554,2576.5,2576.4,1.43626]
[1751975699390,27.069,2576.5,2576.4,2.43616]
[1751975699593,0.684,2576.5,2576.4,2.43616]
[1751975699893,27.06,2576.5,2576.4,2.43616]
[1751975700692,29.59935742,2576.5,2576.4,2.43616]
[1751975701192,28.82312742,2576.5,2576.4,2.43616]
[1751975701893,28.13912742,2576.5,2576.4,0.77626]
[1751975702093,28.13912742,2576.5,2576.4,5.64396]
[1751975702388,28.13912742,2576.5,2576.4,3.98406]
[1751975702792,28.13912742,2576.5,2576.4,5.64396]
[1751975703389,26.376,2576.5,2576.4,5.64396]
[1751975703895,28.91439644,2576.5,2576.4,4.64406]
[1751975704194,29.59839644,2576.5,2576.4,4.64406]
[1751975705689,28.82216644,2576.5,2576.4,5.64396]
[1751975705885,28.81116644,2576.5,2576.4,5.64396]
[1751975706090,27.049,2576.5,2576.4,5.64396]
[1751975709492,8.82,2576.6,2576.5,0.77623]
[1751975709693,35.184,2576.6,2576.5,2.43613]
[1751975709893,0.65,2576.6,2576.5,2.43613]
[1751975710093,8.171,2576.8,2576.7,0.77617]
[1751975710289,36.29474801,2576.8,2576.7,4.55922694]
[1751975710693,34.535,2576.8,2576.7,4.55922694]
[1751975711089,35.219,2576.8,2576.7,4.55922694]
[1751975711895,34.535,2576.8,2576.7,2.89932694]
[1751975712089,34.535,2576.8,2576.7,4.55922694]
[1751975712290,36.29460939,2576.8,2576.7,2.89932694]
[1751975712595,34.535,2576.8,2576.7,4.55922694]
[1751975713192,8.171,2576.8,2576.7,4.55922694]
[1751975713494,9.93074778,2576.8,2576.7,4.55922694]
[1751975713694,34.533,2576.8,2576.7,7.76702694]
[1751975715393,36.29183272,2576.8,2576.7,7.76702694]
[1751975716097,36.29183272,2576.8,2576.7,5.64387]
[1751975716391,36.29183272,2576.8,2576.7,7.76702694]
[1751975717898,36.97583272,2576.8,2576.7,7.76702694]
[1751975718397,28.11983272,2576.8,2576.7,7.76702694]
[1751975719395,28.11983272,2576.8,2576.7,9.06672694]
[1751975719997,26.361,2576.8,2576.7,9.06672694]
[1751975721897,26.361,2576.8,2576.7,7.40682694]
[1751975722401,0.6478,2577.0,2576.9,0.77611]
[1751975722600,29.44292956,2577.0,2576.9,2.42311]
[1751975724310,29.44247824,2577.0,2576.9,2.42311]
[1751975725598,29.44047824,2577.0,2576.9,2.42311]
[1751975725806,29.44047824,2577.0,2576.9,4.54626694]
[1751975728197,30.21655824,2577.0,2576.9,4.54626694]
[1751975728399,1.75807824,2577.0,2576.9,4.54626694]
[1751975728609,28.11707824,2577.0,2576.9,4.54626694]
[1751975729207,28.79267824,2577.0,2576.9,4.54626694]
[1751975729399,28.11707824,2577.0,2576.9,4.54626694]
[1751975729897,28.79267824,2577.0,2576.9,4.54626694]
[1751975730503,28.79267824,2577.0,2576.9,2.42311]
[1751975730705,28.79267824,2577.0,2576.9,1.46931]
[1751975730908,29.56875824,2577.0,2576.9,1.46931]
[1751975731112,30.83665824,2577.0,2576.9,1.46931]
[1751975732004,30.16105824,2577.0,2576.9,0.77611]
[1751975732306,29.38497824,2577.0,2576.9,3.59246694]
[1751975732504,30.83665824,2577.0,2576.9,3.59246694]
[1751975732707,30.83665824,2577.0,2576.9,2.89926694]
[1751975732906,30.83665824,2577.0,2576.9,0.77611]
[1751975733212,30.83665824,2577.0,2576.9,1.46931]
[1751975733809,30.06057824,2577.0,2576.9,1.46931]
[1751975734009,30.83665824,2577.0,2576.9,1.46931]
[1751975735611,30.06057824,2577.0,2576.9,1.46931]
[1751975736013,30.83665824,2577.0,2576.9,1.46931]
[1751975736207,30.06057824,2577.0,2576.9,1.46931]
[1751975736913,30.83665824,2577.0,2576.9,1.46931]
[1751975739311,30.06057824,2577.0,2576.9,1.46931]
[1751975740820,3.70157824,2577.0,2576.9,1.46931]
[1751975741020,30.05857824,2577.0,2576.9,1.46931]
[1751975741422,30.05857824,2577.0,2576.9,2.42311]
[1751975741923,29.38297824,2577.0,2576.9,0.77611]
[1751975742423,29.38297824,2577.0,2576.9,1.46931]
[1751975742921,29.38297824,2577.0,2576.9,4.54626694]
[1751975744021,30.05857824,2577.0,2576.9,4.54626694]
[1751975744426,30.83465824,2577.0,2576.9,3.59246694]
[1751975744828,30.83465824,2577.0,2576.9,2.89926694]
[1751975745125,30.05857824,2577.0,2576.9,3.59246694]
[1751975745520,30.83465824,2577.0,2576.9,1.46931]
[1751975746328,30.05857824,2577.0,2576.9,1.46931]
[1751975748329,30.05857824,2577.0,2576.9,2.42311]
[1751975748532,30.05857824,2577.0,2576.9,1.46931]
[1751975748829,30.05857824,2577.0,2576.9,2.42311]
[1751975749121,30.05857824,2577.0,2576.9,1.46931]
[1751975751028,30.05757824,2577.0,2576.9,1.46931]
[1751975752037,28.11407824,2577.0,2576.9,0.77611]
[1751975752229,28.11407824,2577.0,2576.9,1.41951]
[1751975752430,28.78857824,2577.0,2576.9,2.06891]
[1751975752632,28.11407824,2577.0,2576.9,1.41951]
[1751975752828,28.78857824,2577.0,2576.9,3.76550548]
[1751975753331,28.11407824,2577.0,2576.9,3.76550548]
[1751975753633,28.78857824,2577.0,2576.9,3.76550548]
[1751975756330,28.78857824,2577.0,2576.9,6.97330548]
[1751975756933,2.43257824,2577.0,2576.9,6.97330548]
[1751975757133,28.78857824,2577.0,2576.9,6.97330548]
[1751975760730,2.43257824,2577.0,2576.9,6.97330548]
[1751975760931,28.78757824,2577.0,2576.9,7.99770548]
[1751975762032,28.78757824,2577.0,2576.9,6.97330548]
[1751975762231,28.11307824,2577.0,2576.9,6.32390548]
[1751975762430,28.11307824,2577.0,2576.9,6.97330548]
[1751975762630,28.78757824,2577.0,2576.9,6.97330548]
[1751975762829,28.11307824,2577.0,2576.9,6.97330548]
[1751975763126,28.78757824,2577.0,2576.9,6.97330548]
[1751975765137,29.56365824,2577.0,2576.9,6.97330548]
[1751975765337,28.78757824,2577.0,2576.9,6.97330548]
[1751975765537,2.43257824,2577.0,2576.9,6.97330548]
[1751975766738,28.78657824,2577.0,2576.9,6.97330548]
[1751975767036,29.56265824,2577.0,2576.9,6.97330548]
[1751975768237,29.56265824,2577.0,2576.9,6.32990548]
[1751975768632,29.56265824,2577.0,2576.9,3.98391]
[1751975768633,29.86595824,2577.0,2576.9,3.98391]
[1751975768838,1.94032,2576.9,2576.5,3.98399]
[1751975769040,2.47279548,2576.6,2576.5,0.77619]
[1751975769340,0.77628,2576.5,2576.4,0.77623]
[1751975769540,4.53235824,2576.5,2576.4,0.77623]
[1751975770536,0.77629,2576.4,2576.3,0.77627]
[1751975770733,0.77632,2576.3,2576.2,0.77629]
[1751975771139,1.2682,2576.3,2576.2,0.77629]
[1751975771339,1.2682,2576.3,2576.2,1.42569]
[1751975771739,1.2682,2576.3,2576.2,3.54782845]
[1751975771942,1.2682,2576.3,2576.2,2.89842845]
[1751975772534,1.2682,2576.3,2576.2,3.54782845]
[1751975772738,28.2987,2576.3,2576.2,4.57222845]
[1751975773940,28.2987,2576.3,2576.2,3.54782845]
[1751975774442,28.2987,2576.3,2576.2,1.42569]
[1751975775440,28.2987,2576.3,2576.2,1.42469]
[1751975776042,30.05402694,2576.3,2576.2,1.42469]
[1751975776341,30.05369923,2576.3,2576.2,1.42369]
[1751975776841,3.69769923,2576.3,2576.2,1.42369]
[1751975777047,28.78749923,2576.3,2576.2,2.44809]
[1751975777247,27.0325,2576.3,2576.2,2.44709]
[1751975777639,28.7871982,2576.3,2576.2,2.44709]
[1751975779550,28.7871982,2576.3,2576.2,2.44609]
[1751975779744,1.7546982,2576.3,2576.2,2.44609]
[1751975780449,26.358,2576.4,2576.3,0.77629]
[1751975780650,28.11431307,2576.4,2576.3,2.89842845]
[1751975781051,28.76381307,2576.4,2576.3,2.89842845]
[1751975781349,28.76381307,2576.4,2576.3,2.89742845]
[1751975782145,28.76381307,2576.4,2576.3,4.57232845]
[1751975782344,28.11431307,2576.4,2576.3,2.89742845]
[1751975782746,28.76381307,2576.4,2576.3,4.58922845]
[1751975783151,28.11431307,2576.4,2576.3,4.58922845]
[1751975783357,28.11431307,2576.4,2576.3,2.46709]
[1751975783656,28.76381307,2576.4,2576.3,4.58922845]
[1751975784954,28.76381307,2576.4,2576.3,7.79702845]
[1751975785958,28.76381307,2576.4,2576.3,6.75572845]
[1751975786357,29.39771307,2576.4,2576.3,6.75572845]
[1751975790456,30.17397307,2576.4,2576.3,6.75572845]
[1751975790760,29.39771307,2576.4,2576.3,6.75572845]
[1751975791158,30.17397307,2576.4,2576.3,6.75572845]
[1751975791458,29.39771307,2576.4,2576.3,6.75572845]
[1751975791961,28.74821307,2576.4,2576.3,6.75572845]
[1751975792160,28.74821307,2576.4,2576.3,6.10522845]
[1751975792462,28.74821307,2576.4,2576.3,6.75572845]
[1751975792658,30.17397307,2576.4,2576.3,6.75572845]
[1751975792859,29.39771307,2576.4,2576.3,6.33100633]
[1751975793258,30.17397307,2576.4,2576.3,6.33100633]
[1751975794660,31.12877307,2576.4,2576.3,3.2078]
[1751975794865,31.12877307,2576.4,2576.3,3.98409]
[1751975795067,32.48637307,2576.4,2576.3,3.98409]
[1751975799364,31.53157307,2576.4,2576.3,3.98409]
[1751975801666,31.53157307,2576.4,2576.3,0.77629]
[1751975801968,30.88207307,2576.4,2576.3,0.77629]
[1751975802162,31.53157307,2576.4,2576.3,0.77629]
[1751975802567,30.88207307,2576.4,2576.3,0.77629]
[1751975802863,31.53157307,2576.4,2576.3,0.77629]
[1751975804968,31.53157307,2576.4,2576.3,1.42679]
[1751975805267,30.75531307,2576.4,2576.3,1.42679]
[1751975805670,31.53157307,2576.4,2576.3,1.42679]
[1751975810070,32.48637307,2576.4,2576.3,0.77629]
[1751975810373,0.77632,2576.3,2576.2,0.7763]
[1751975810565,4.53343307,2576.3,2576.2,0.7763]
[1751975811974,3.87193307,2576.3,2576.2,0.7763]
[1751975812172,4.53343307,2576.3,2576.2,0.7763]
[1751975812468,0.77632,2576.2,2576.1,3.98412]
[1751975812774,31.91713307,2576.2,2576.1,3.98412]
[1751975813077,30.89043307,2576.2,2576.1,3.98412]
[1751975815074,0.77635,2576.1,2576.0,0.77637]
[1751975815275,0.77649,2575.8,2575.7,0.77644]
[1751975815574,55.90730307,2575.8,2575.7,1.46344]
[1751975815774,55.24580307,2575.8,2575.7,1.46344]
[1751975815974,55.88040307,2575.8,2575.7,1.46344]
[1751975822177,64.04740307,2575.8,2575.7,1.46344]
[1751975822580,55.88035307,2575.8,2575.7,0.77644]
[1751975822783,63.41275307,2575.8,2575.7,2.48534]
[1751975823479,63.41275307,2575.8,2575.7,1.46344]
[1751975831583,62.63631307,2575.8,2575.7,2.48534]
[1751975832179,63.41275307,2575.8,2575.7,0.77644]
[1751975832384,63.41275307,2575.8,2575.7,2.48534]
[1751975832584,63.41275307,2575.8,2575.7,0.77644]
[1751975832784,63.41275307,2575.8,2575.7,1.46344]
[1751975833289,63.41275307,2575.8,2575.7,2.48534]
[1751975834586,62.63631307,2575.8,2575.7,2.48534]
[1751975835184,54.46931307,2575.8,2575.7,2.48534]
[1751975835391,62.63731307,2575.8,2575.7,2.48534]
[1751975835587,52.713,2575.8,2575.7,2.48534]
[1751975835790,52.713,2575.8,2575.7,3.88744]
[1751975836385,3.2078,2576.1,2576.0,0.77638]
[1751975836585,39.51190372,2576.1,2576.0,1.46338]
[1751975836785,40.17340372,2576.1,2576.0,3.16174906]
[1751975837892,40.94975372,2576.1,2576.0,3.16174906]
[1751975840194,40.17340372,2576.1,2576.0,3.16174906]
[1751975840391,40.17340372,2576.1,2576.0,4.18364906]
[1751975840392,36.96560372,2576.1,2576.0,4.18364906]
[1751975840693,37.74195372,2576.1,2576.0,2.48528]
[1751975840893,37.74195372,2576.1,2576.0,4.18364906]
[1751975841491,36.96560372,2576.1,2576.0,4.18364906]
[1751975841994,36.30410372,2576.1,2576.0,4.13094906]
[1751975842195,37.00790372,2576.1,2576.0,2.47474906]
[1751975842389,37.00790372,2576.1,2576.0,2.36788]
[1751975842591,36.30410372,2576.1,2576.0,4.06624906]
[1751975842793,37.00790372,2576.1,2576.0,4.06624906]
[1751975845096,37.78425372,2576.1,2576.0,4.06624906]
[1751975845296,37.00790372,2576.1,2576.0,4.06624906]
[1751975847398,37.78771773,2576.1,2576.0,4.06624906]
[1751975847598,37.78771773,2576.1,2576.0,3.10904906]
[1751975849709,37.78771773,2576.1,2576.0,1.41068]
[1751975851301,29.61971773,2576.1,2576.0,1.41068]
[1751975851501,37.78671773,2576.1,2576.0,1.41068]
[1751975851902,37.08291773,2576.1,2576.0,0.77638]
[1751975852302,36.30056773,2576.1,2576.0,0.77638]
[1751975852501,36.30056773,2576.1,2576.0,2.36788]
[1751975852698,37.00436773,2576.1,2576.0,2.36788]
[1751975854503,37.78071773,2576.1,2576.0,2.36788]
[1751975855504,37.00436773,2576.1,2576.0,2.36788]
[1751975856302,37.78071773,2576.1,2576.0,1.41068]
[1751975856602,37.00436773,2576.1,2576.0,1.41068]
[1751975859702,37.78071773,2576.1,2576.0,1.41068]
[1751975860200,37.00436773,2576.1,2576.0,1.41068]
[1751975860605,37.78071773,2576.1,2576.0,1.41068]
[1751975861908,37.07691773,2576.1,2576.0,0.77638]
[1751975862102,37.07691773,2576.1,2576.0,1.41068]
[1751975862303,37.78071773,2576.1,2576.0,1.41068]
[1751975862508,37.07691773,2576.1,2576.0,1.41068]
[1751975863203,37.78071773,2576.1,2576.0,1.41068]
[1751975863607,36.30056773,2576.1,2576.0,1.41068]
[1751975863809,37.00436773,2576.1,2576.0,1.41068]
[1751975864011,37.00436773,2576.1,2576.0,2.36788]
[1751975865506,37.78071773,2576.1,2576.0,2.36788]
[1751975865808,37.78071773,2576.1,2576.0,1.41068]
[1751975866111,37.78071773,2576.1,2576.0,3.10904906]
[1751975871723,37.00436773,2576.1,2576.0,3.10904906]
[1751975871914,37.07691773,2576.1,2576.0,2.47474906]
[1751975872116,37.07691773,2576.1,2576.0,3.12144906]
[1751975872314,37.07691773,2576.1,2576.0,2.47474906]
[1751975872515,37.75351773,2576.1,2576.0,3.12144906]
[1751975872913,36.30056773,2576.1,2575.8,3.8617]
[1751975873221,3.23356773,2576.0,2575.9,1.42308]
[1751975873522,4.63086773,2576.0,2575.9,1.42308]
[1751975877114,3.95426773,2576.0,2575.9,1.42308]
[1751975877320,4.63084773,2576.0,2575.9,1.42308]
[1751975877520,3.95424773,2576.0,2575.9,1.42308]
[1751975877822,4.63084773,2576.0,2575.9,1.42308]
[1751975878224,3.85446773,2576.0,2575.9,1.42308]
[1751975878723,4.63084773,2576.0,2575.9,1.42308]
[1751975880424,3.23354773,2576.0,2575.9,2.38568]
[1751975880624,2.45716773,2576.0,2575.9,2.38568]
[1751975880924,3.23354773,2576.0,2575.9,2.38568]
[1751975881819,28.80316773,2576.0,2575.9,2.38568]
[1751975882026,28.12656773,2576.0,2575.9,0.77638]
[1751975882525,28.12656773,2576.0,2575.9,2.38568]
[1751975882825,28.80316773,2576.0,2575.9,2.38568]
[1751975883027,28.12656773,2576.0,2575.9,2.38568]
[1751975883219,28.80316773,2576.0,2575.9,2.38568]
[1751975883722,29.57954773,2576.0,2575.9,2.38568]
[1751975884924,29.57954773,2576.0,2575.9,0.77638]
[1751975885225,30.97524773,2576.0,2575.9,1.42308]
[1751975886026,30.97524773,2576.0,2575.9,0.77638]
[1751975886726,30.97524773,2576.0,2575.9,1.42308]
[1751975888021,28.80316773,2576.0,2575.9,1.42308]
[1751975888329,28.80316773,2576.0,2575.9,2.38568]
[1751975888724,29.57954773,2576.0,2575.9,2.38568]
[1751975889125,29.57954773,2576.0,2575.9,1.42308]
[1751975889325,28.90294773,2576.0,2575.9,2.38568]
[1751975889731,28.12656773,2576.0,2575.9,2.38568]
[1751975889931,28.80316773,2576.0,2575.9,2.38568]
[1751975890632,29.57954773,2576.0,2575.9,2.38568]
[1751975890932,28.80316773,2576.0,2575.9,2.38568]
[1751975891132,29.57954773,2576.0,2575.9,2.38568]
[1751975891926,29.57954773,2576.0,2575.9,0.77638]
[1751975892130,29.57954773,2576.0,2575.9,1.42308]
[1751975892332,28.90294773,2576.0,2575.9,0.77638]
[1751975892526,28.90294773,2576.0,2575.9,1.42308]
[1751975892928,29.57954773,2576.0,2575.9,1.42308]
[1751975893632,29.57954773,2576.0,2575.9,0.77638]
[1751975893832,29.57954773,2576.0,2575.9,1.42308]
[1751975894034,28.90294773,2576.0,2575.9,1.42308]
[1751975894233,29.57954773,2576.0,2575.9,1.42308]
[1751975894434,28.90294773,2576.0,2575.9,1.42308]
[1751975894832,29.57954773,2576.0,2575.9,1.42308]
[1751975895034,28.80316773,2576.0,2575.9,1.42308]
[1751975896035,29.57954773,2576.0,2575.9,1.42308]
[1751975897237,3.23354773,2576.0,2575.9,1.42308]
[1751975897442,29.57654773,2576.0,2575.9,1.42308]
[1751975898033,1.78056773,2576.0,2575.9,0.77638]
[1751975898245,28.12356773,2576.0,2575.9,2.38568]
[1751975901740,28.12356773,2576.0,2575.9,2.40318]
[1751975902038,28.12356773,2576.0,2575.9,0.77638]
[1751975902440,28.12356773,2576.0,2575.9,2.42548]
[1751975902940,28.80796773,2576.0,2575.9,2.42548]
[1751975903343,28.12356773,2576.0,2575.9,2.42548]
[1751975903542,28.80796773,2576.0,2575.9,2.42548]
[1751975904643,1.78056773,2576.0,2575.9,4.12384906]
[1751975904842,1.78056773,2576.0,2575.9,2.42548]
[1751975907048,1.78056773,2576.0,2575.9,5.63328]
[1751975909253,2.46496773,2576.0,2575.9,5.63328]
[1751975909557,1.78056773,2576.0,2575.9,5.63328]
[1751975909746,28.11956773,2576.0,2575.9,5.63328]
[1751975910550,28.80396773,2576.0,2575.9,5.63328]
[1751975910752,28.11956773,2576.0,2575.9,5.63328]
[1751975913154,28.80396773,2576.0,2575.9,5.63328]
[1751975913356,28.11956773,2576.0,2575.9,5.63328]
[1751975913550,28.80396773,2576.0,2575.9,5.63328]
[1751975915356,28.80196773,2576.0,2575.9,5.63328]
[1751975920961,27.0214,2576.0,2575.9,5.63328]
[1751975922057,26.337,2576.0,2575.9,3.98418]
[1751975922561,28.10684758,2576.0,2575.9,3.98418]
[1751975922764,28.10684758,2576.0,2575.9,5.63328]
[1751975922968,28.79124758,2576.0,2575.9,5.63328]
[1751975925858,28.10684758,2576.0,2575.9,3.98418]
[1751975926063,28.79124758,2576.0,2575.9,5.63328]
[1751975927268,28.79124758,2576.0,2575.9,4.64838]
[1751975929865,28.79124758,2576.0,2575.9,5.63328]
[1751975931962,28.10684758,2576.0,2575.9,3.98418]
[1751975932162,28.78544758,2576.0,2575.9,5.63348]
[1751975932358,28.78544758,2576.0,2575.9,5.65048]
[1751975932562,28.10684758,2576.0,2575.9,3.98418]
[1751975932766,28.78544758,2576.0,2575.9,4.64858]
[1751975933468,29.47104758,2576.0,2575.9,4.64858]
[1751975934168,29.47104758,2576.0,2575.9,5.68254906]
[1751975934365,0.77641,2575.9,2575.8,0.77641]
[1751975934567,3.86175758,2575.9,2575.8,0.77641]
[1751975935870,5.53505758,2575.9,2575.8,0.77641]
[1751975940271,4.54035758,2575.9,2575.8,0.77641]
[1751975944275,4.54035758,2575.9,2575.8,1.44081]
[1751975944668,4.54035758,2575.9,2575.8,0.77641]
[1751975945273,4.54035758,2575.9,2575.8,1.44081]
[1751975945473,2.8318974,2575.9,2575.8,1.97461615]
[1751975945674,0.73478441,2575.9,2575.8,1.97461615]
[1751975946166,0.83259441,2575.9,2575.8,1.97461615]
[1751975946577,0.05538441,2575.9,2575.8,1.97461615]
[1751975946777,0.05538441,2575.9,2575.8,5.81731615]
[1751975947073,0.05538441,2575.9,2575.8,5.25730686]
[1751975947274,0.05538441,2575.9,2575.8,3.99530969]
[1751975947474,0.05538441,2575.9,2575.7,1.40288836]
[1751975947674,0.73398441,2575.9,2575.8,1.44081]
[1751975948176,27.0186,2576.0,2575.8,1.44081]
[1751975948376,27.0186,2576.0,2575.9,0.77641]
[1751975949268,26.333,2576.0,2575.9,0.77641]
[1751975950179,26.333,2576.0,2575.9,1.69836906]
[1751975950377,26.333,2576.0,2575.9,2.47477906]
[1751975950777,27.0116,2576.0,2575.9,3.79487906]
[1751975951178,27.0116,2576.0,2575.9,2.96932137]
[1751975951379,0.6786,2576.0,2575.9,2.96932137]
[1751975951678,27.0106,2576.0,2575.9,3.74573137]
[1751975952080,26.07961189,2576.0,2575.9,4.16095933]
[1751975952476,0.6334,2576.3,2576.2,0.77632]
[1751975952675,13.68641712,2576.5,2576.2,0.77632]
[1751975952676,2.31961712,2576.6,2576.5,0.77623]
[1751975952977,6.69373904,2576.8,2576.5,0.77623]
[1751975952978,5.52741712,2576.8,2576.5,0.41522796]
[1751975953278,0.77626,2576.5,2576.4,0.77623]
[1751975953476,3.98406,2576.5,2576.4,1.18503688]
[1751975953670,5.2196,2576.5,2576.4,1.18503688]
[1751975953874,6.2143,2576.5,2576.4,1.18503688]
[1751975954074,5.70955958,2576.5,2576.4,1.18503688]
[1751975954981,6.48578958,2576.5,2576.4,1.18503688]
[1751975955179,32.81478958,2576.5,2576.4,1.18503688]
[1751975957084,31.80531041,2576.5,2576.4,1.18503688]
[1751975957283,5.47631041,2576.5,2576.4,1.18503688]
[1751975957478,31.80431041,2576.5,2576.4,1.18503688]
[1751975958484,33.45093335,2576.5,2576.4,1.18503688]
[1751975960082,32.94619336,2576.5,2576.4,1.18503688]
[1751975961384,31.29957042,2576.5,2576.4,1.18503688]
[1751975961988,29.62627042,2576.5,2576.4,1.18503688]
[1751975962489,31.25777042,2576.5,2576.4,1.18503688]
[1751975962684,29.62627042,2576.5,2576.4,1.18503688]
[1751975962882,31.25777042,2576.5,2576.4,1.18503688]
[1751975963290,31.25777042,2576.5,2576.4,0.40880688]
[1751975963492,32.80210769,2576.5,2576.4,0.40880688]
[1751975964190,31.25777042,2576.5,2576.4,0.40880688]
[1751975964391,32.80207146,2576.5,2576.4,0.40880688]
[1751975964989,1.94071,2576.4,2576.0,0.77633]
[1751975965192,0.77638,2576.1,2576.0,0.77633]
[1751975965498,27.75968,2576.1,2576.0,0.77633]
[1751975966092,26.9833,2576.1,2576.0,0.77633]
[1751975966392,27.75968,2576.1,2576.0,0.77633]
[1751975966586,27.75968,2576.1,2576.0,1.42993]
[1751975966987,27.12867268,2576.1,2576.0,1.42993]
[1751975967495,27.12867268,2576.1,2576.0,0.77633]
[1751975969690,28.67132034,2576.1,2576.0,0.77633]
[1751975970196,30.65542034,2576.1,2576.0,0.77633]
[1751975970594,30.65542034,2576.1,2576.0,1.42993]
[1751975971991,30.65542034,2576.1,2576.0,0.77633]
[1751975972296,30.65542034,2576.1,2576.0,1.42993]
[1751975973495,27.87064766,2576.1,2576.0,4.13329906]
[1751975974594,26.328,2576.1,2576.0,4.13329906]
[1751975976798,26.328,2576.1,2576.0,4.55685928]
[1751975977187,26.328,2576.1,2576.0,5.24895928]
[1751975977389,27.76165,2576.1,2576.0,2.43498]
[1751975977899,27.10435,2576.1,2576.0,0.77638]
[1751975978095,27.76165,2576.1,2576.0,0.77638]
[1751975978898,27.76165,2576.1,2576.0,1.42998]
[1751975980401,29.30683881,2576.1,2576.0,1.42998]
[1751975981902,28.64953881,2576.1,2576.0,0.77638]
[1751975982303,29.30683881,2576.1,2576.0,1.42998]
[1751975982496,29.30683881,2576.1,2576.0,0.77638]
[1751975982691,29.30683881,2576.1,2576.0,1.42998]
[1751975985004,29.30598108,2576.1,2576.0,1.42998]
[1751975986203,28.52963108,2576.1,2576.0,2.43498]
[1751975986400,26.328,2576.1,2576.0,2.43498]
[1751975986602,26.328,2576.1,2576.0,3.08068]
[1751975987403,27.87203434,2576.1,2576.0,3.08068]
[1751975987804,28.64838434,2576.1,2576.0,3.08068]
[1751975988205,29.30568434,2576.1,2576.0,3.08068]
[1751975988711,29.30568434,2576.1,2576.0,2.07568]
[1751975989208,29.30568434,2576.1,2576.0,1.42998]
[1751975990715,1.54403434,2576.1,2576.0,1.42998]
[1751975991012,26.328,2576.1,2576.0,2.43498]
[1751975991911,26.328,2576.1,2576.0,0.77638]
[1751975992116,27.88740635,2576.1,2576.0,2.47538]
[1751975992511,27.88740635,2576.1,2576.0,2.47468]
[1751975994418,26.328,2576.1,2576.0,2.47468]
[1751975995118,26.9767,2576.1,2576.0,2.47468]
[1751975997813,26.328,2576.1,2576.0,2.47468]
[1751976000707,8.157,2576.3,2576.2,0.77632]
[1751976000915,36.04408575,2576.3,2576.2,3.59219928]
[1751976001114,36.04408575,2576.3,2576.2,4.59649928]
[1751976001918,36.04408575,2576.3,2576.2,2.89819928]
[1751976002114,36.04408575,2576.3,2576.2,4.59649928]
[1751976002412,1.56008575,2576.3,2576.2,2.89819928]
[1751976002620,1.56008575,2576.3,2576.2,4.59649928]
[1751976002818,2.20878575,2576.3,2576.2,4.59649928]
[1751976003119,1.56008575,2576.3,2576.2,4.59649928]
[1751976003515,26.326,2576.7,2576.4,1.94064]
[1751976003817,2.97181712,2577.0,2576.9,0.77611]
[1751976004015,27.6269,2577.0,2576.9,1.47011]
[1751976004320,27.6269,2577.0,2576.9,2.47441]
[1751976004714,3.2078,2577.1,2577.0,0.77608]
[1751976004915,3.8565,2577.1,2577.0,3.59195928]
[1751976005108,3.8565,2577.1,2577.0,4.59625928]
[1751976005109,3.2078,2577.1,2577.0,4.59625928]
[1751976005715,0.6522,2577.2,2577.1,0.77605]
[1751976005920,26.325,2577.3,2577.2,0.77602]
[1751976006121,3.2078,2577.4,2577.3,0.77599]
[1751976006314,3.8823,2577.8,2577.7,0.77587]
[1751976006510,3.8823,2577.8,2577.7,2.47417]
[1751976006712,34.497,2578.1,2578.0,0.77578]
[1751976006917,35.1457,2578.1,2578.0,1.46978]
[1751976007220,35.1457,2578.1,2578.0,0.77578]
[1751976007415,36.448,2578.1,2578.0,1.46978]
[1751976007615,36.448,2578.1,2578.0,0.77578]
[1751976007818,36.448,2578.1,2578.0,1.46978]
[1751976008522,10.107,2578.1,2578.0,1.46978]
[1751976008722,36.443,2578.1,2578.0,1.46978]
[1751976009521,37.21875,2578.1,2578.0,0.694]
[1751976009722,40.42655,2578.1,2578.0,0.694]
[1751976009918,37.21875,2578.1,2578.0,0.694]
[1751976011613,39.58127928,2578.1,2577.6,3.2078]
[1751976011813,0.77593,2577.6,2577.5,0.77592]
[1751976012019,2.12187928,2577.8,2577.6,0.7759]
[1751976012020,0.77589,2577.7,2577.6,0.7759]
[1751976012218,2.82199,2577.7,2577.6,0.7759]
[1751976012420,3.47069,2577.7,2577.6,1.4699]
[1751976012723,3.47069,2577.7,2577.6,0.7759]
[1751976013017,3.47069,2577.7,2577.6,1.4699]
[1751976013222,0.6676,2577.7,2577.6,4.59607928]
[1751976013613,0.6676,2577.7,2577.6,7.80387928]
[1751976014724,26.327,2577.8,2577.7,0.77587]
[1751976014924,27.10284,2577.8,2577.7,0.77587]
[1751976015118,27.10284,2577.8,2577.7,1.46987]
[1751976015323,27.10284,2577.8,2577.7,2.47417]
[1751976016219,0.6676,2578.0,2577.9,0.77581]
[1751976016427,2.09208,2578.0,2577.9,2.89768928]
[1751976017725,1.3163,2578.0,2577.9,2.89768928]
[1751976017921,0.77573,2578.2,2578.1,0.77575]
[1751976018116,27.74943,2578.2,2578.1,0.77575]